lending/lending_fUSD_20260209
["ID","MTS","AMOUNT","RATE_DAILY","PERIOD"]
[404903285,1770670239558,-791.62,0.00017898,2]
[404903286,1770670239567,-791.62,0.00017898,2]
[404903287,1770670239576,-791.62,0.00017898,2]
[404903288,1770670239588,-791.62,0.00017898,2]
[404903289,1770670239597,-791.62,0.00017898,2]
[404903290,1770670239607,-791.62,0.00017898,2]
[404903291,1770670239619,-791.62,0.00017898,2]
[404903292,1770670239629,-791.64602839,0.00017898,2]
[404903293,1770670239638,-500.0,0.00017898,2]
[404903294,1770670239649,-500.0,0.00017898,2]
[404903295,1770670239660,-500.0,0.00017898,2]
[404903296,1770670239670,-500.0,0.00017898,2]
[404903297,1770670239680,-500.0,0.00017898,2]
[404903298,1770670239690,-500.0,0.00017898,2]
[404903299,1770670239700,-363.6241669,0.00017898,2]
[404903300,1770670239710,-189.43451318,0.000179,2]
[404903301,1770670239720,-500.0,0.000179,2]
[404903302,1770670239730,-180.73058708,0.000179,2]
[404903303,1770670239740,-2561.28958416,0.000179,2]
[404903304,1770670239751,-2680.0,0.000179,2]
[404903305,1770670239763,-150.0,0.00017918,2]
[404903306,1770670239773,-968.0,0.00017933,2]
[404903307,1770670239783,-503.82952283,0.00017953,2]
[404903308,1770670239792,-1000.0,0.00017967,2]
[404903309,1770670239802,-293.9689306,0.00017969,2]
[404903310,1770670239811,-200.0,0.00017969,2]
[404903311,1770670239821,-150.0,0.00017972,2]
[404903312,1770670239837,-169.20577921,0.0001799,2]
[404903313,1770670239847,-151.0,0.00017997,2]
[404903314,1770670239857,-1316.12626123,0.00017999,5]
[404903315,1770670239866,-300.0,0.00017999,2]
[404903316,1770670239876,-300.0,0.00017999,2]
[404903317,1770670239885,-300.0,0.00017999,2]
[404903318,1770670239895,-300.0,0.00017999,2]
[404903319,1770670239905,-666.0,0.00017999,2]
[404903320,1770670239915,-300.0,0.00017999,2]
[404903321,1770670239924,-666.0,0.00017999,2]
[404903322,1770670239934,-249408.35655542,0.00018,2]
[404903324,1770670240352,-437.70943335,0.00018,2]
[404903325,1770670240363,-6000.89731925,0.00018,2]
[404903326,1770670240648,-1421322.95785393,0.00018,2]
[404903327,1770670240660,-1047.39959996,0.00018,2]
[404903328,1770670240672,-1559.04062305,0.00018,2]
[404903329,1770670240684,-591.07158026,0.00018,2]
[404903330,1770670240696,-158143.67621184,0.00018,2]
[404903339,1770670243469,-2260.56127534,0.00018,2]
[404903340,1770670243483,-1969.90943152,0.00018,2]
[404903341,1770670243497,-374.04757467,0.00018,2]
[404903348,1770670247133,-31795.17823185,0.00018,2]
[404903349,1770670247145,-51094.525002,0.00018,2]
[404903350,1770670247156,-18976.27833929,0.00018,2]
[404903351,1770670247294,834.55976372,0.00016583,2]
[404903352,1770670265789,560.80487428,0.00016682,2]
[404903353,1770670279431,220.9104377,0.00016682,2]
[404903354,1770670279458,279.0895623,0.00016682,2]
[404903355,1770670279488,500.0,0.00016682,2]
[404903356,1770670279526,500.0,0.00016682,2]
[404903357,1770670279559,500.0,0.00016682,2]
[404903358,1770670279593,500.0,0.00016682,2]
[404903359,1770670279631,500.0,0.00016682,2]
[404903360,1770670279668,500.0,0.00016682,2]
[404903361,1770670279702,500.0,0.00016682,2]
[404903362,1770670279733,500.0,0.00016682,2]
[404903363,1770670279983,500.0,0.00016682,2]
[404903364,1770670280020,500.0,0.00016682,2]
[404903365,1770670280055,500.0,0.00016682,2]
[404903366,1770670280102,500.0,0.00016682,2]
[404903367,1770670280137,500.0,0.00016682,2]
[404903368,1770670280172,500.0,0.00016682,2]
[404903369,1770670280203,500.0,0.00016682,2]
[404903370,1770670280239,500.0,0.00016682,2]
[404903371,1770670280277,500.0,0.00016682,2]
[404903372,1770670280307,500.0,0.00016682,2]
[404903373,1770670280342,500.0,0.00016682,2]
[404903374,1770670280377,220.9204377,0.00016682,2]
[404903379,1770670303866,468.94,0.00035616,30]
[404903380,1770670321131,300.0,0.00016582,2]
[404903382,1770670355522,6982.46,0.00014022,2]
[404903383,1770670373993,2717.55,0.00016483,2]
[404903384,1770670374017,10000.01,0.00016483,2]
[404903385,1770670374041,10000.01,0.00016483,2]
[404903386,1770670374065,10000.01,0.00016483,2]
[404903387,1770670390983,465.65750484,0.00016483,2]
[404903388,1770670399827,1316.12626123,0.00016482,5]
[404903389,1770670407837,1200.0,0.00016482,2]
[404903390,1770670410933,2752.61619467,0.00016383,2]
[404903391,1770670422409,490.03636477,0.00016383,2]
[404903392,1770670428647,3775.57367449,0.00016383,2]
[404903393,1770670428672,6660.5410641,0.00016383,2]
[404903394,1770670428740,2436.55069835,0.00016383,2]
[404903395,1770670431725,902.91823755,0.00016383,2]
[404903396,1770670431749,1794.64586518,0.00016383,2]
[404903397,1770670436168,8205.36413482,0.00016383,2]
[404903398,1770670436191,4212.3009313,0.00016383,2]
[404903399,1770670440850,1427.61032238,0.00016383,2]
[404903400,1770670441439,300.0,0.00016482,2]
[404903401,1770670441834,550.0,0.00016482,2]
[404903402,1770670444173,300.0,0.00016482,2]
[404903403,1770670471752,500.0,0.00016482,2]
[404903404,1770670471786,201.76550202,0.00016482,2]
[404903405,1770670471829,344.5978771,0.00016482,2]
[404903406,1770670471857,500.0,0.00016482,2]
[404903407,1770670471977,346.10034798,0.00016482,2]
[404903408,1770670472033,500.0,0.00016482,2]
[404903409,1770670472124,627.33374336,0.00016482,2]
[404903410,1770670472160,500.0,0.00016482,2]
[404903411,1770670472275,500.0,0.00016482,2]
[404903412,1770670477328,151.36504069,0.00016482,2]
[404903413,1770670477359,500.0,0.00016482,2]
[404903414,1770670477398,500.0,0.00016482,2]
[404903415,1770670477435,500.0,0.00016482,2]
[404903416,1770670477473,500.0,0.00016482,2]
[404903417,1770670477518,500.0,0.00016482,2]
[404903418,1770670477552,500.0,0.00016482,2]
[404903419,1770670477594,251.23716647,0.00016482,2]
[404903420,1770670477618,248.76283353,0.00016482,2]
[404903421,1770670477661,500.0,0.00016482,2]
[404903422,1770670477697,500.0,0.00016482,2]
[404903423,1770670477939,500.0,0.00016482,2]
[404903424,1770670477985,500.0,0.00016482,2]
[404903425,1770670478030,500.0,0.00016482,2]
[404903426,1770670478075,500.0,0.00016482,2]
[404903427,1770670478117,500.0,0.00016482,2]
[404903428,1770670478153,500.0,0.00016482,2]
[404903429,1770670478188,500.0,0.00016482,2]
[404903430,1770670478232,500.0,0.00016482,2]
[404903431,1770670478274,500.0,0.00016482,2]
[404903432,1770670478314,500.0,0.00016482,2]
[404903433,1770670478394,500.0,0.00016482,2]
[404903434,1770670478442,500.0,0.00016482,2]
[404903435,1770670478481,500.0,0.00016482,2]
[404903436,1770670478558,500.0,0.00016482,2]
[404903437,1770670478597,500.0,0.00016482,2]
[404903438,1770670478635,249.00828941,0.00016482,2]
[404903439,1770670478681,500.0,0.00016482,2]
[404903440,1770670478715,500.0,0.00016482,2]
[404903441,1770670478753,2.23887706,0.00016482,2]
[404903442,1770670478778,497.76112294,0.00016482,2]
[404903443,1770670478821,500.0,0.00016482,2]
[404903444,1770670478861,500.0,0.00016482,2]
[404903445,1770670478930,500.0,0.00016482,2]
[404903446,1770670478964,500.0,0.00016482,2]
[404903447,1770670479010,500.0,0.00016482,2]
[404903448,1770670479060,500.0,0.00016482,2]
[404903449,1770670479100,500.0,0.00016482,2]
[404903450,1770670479136,500.0,0.00016482,2]
[404903451,1770670479188,500.0,0.00016482,2]
[404903452,1770670492614,1413.40484638,0.00016383,2]
[404903453,1770670501198,300.0,0.00016482,2]
[404903454,1770670501228,1200.0,0.00016482,2]
[404903455,1770670501331,300.0,0.00016482,2]
[404903456,1770670503813,151.0,0.0001648,2]
[404903457,1770670504258,151.0,0.0001648,2]
[404903458,1770670504637,151.0,0.0001648,2]
[404903459,1770670505784,150.0,0.00016203,2]
[404903460,1770670511046,1185.84403068,0.00016383,2]
[404903461,1770670511071,2619.91767956,0.00016383,2]
[404903462,1770670514137,150.0,0.00016456,2]
[404903463,1770670514808,150.0,0.00016456,2]
[404903464,1770670520608,396.55,0.00016091,2]
[404903465,1770670521364,419.14182028,0.00016383,2]
[404903466,1770670556167,6264.40050016,0.00016383,2]
[404903467,1770670556190,2014.04287724,0.00016383,2]
[404903468,1770670573029,349.05150933,0.00016383,2]
[404903469,1770670573442,200.0,0.00016113,2]
[404903474,1770670590506,3579.83172915,0.00016383,2]
[404903475,1770670602174,187.77542176,0.00016383,2]
[404903476,1770670622194,230.0,0.00016482,2]
[404903477,1770670622514,550.0,0.00016482,2]
[404903478,1770670622913,942.26989758,0.00016383,2]
[404903479,1770670623992,151.0,0.0001648,2]
[404903480,1770670624392,151.0,0.0001648,2]
[404903481,1770670624764,151.0,0.0001648,2]
[404903482,1770670625946,592.27024358,0.00016482,2]
[404903483,1770670628482,300.0,0.00016482,2]
[404903484,1770670639699,500.0,0.00016482,2]
[404903485,1770670639748,101.76832136,0.00016482,2]
[404903486,1770670639775,398.23167864,0.00016482,2]
[404903487,1770670639808,324.90082894,0.00016482,2]
[404903488,1770670639843,500.0,0.00016482,2]
[404903489,1770670639878,500.0,0.00016482,2]
[404903490,1770670639916,500.0,0.00016482,2]
[404903491,1770670639957,500.0,0.00016482,2]
[404903492,1770670639992,500.0,0.00016482,2]
[404903493,1770670640031,500.0,0.00016482,2]
[404903494,1770670640076,500.0,0.00016482,2]
[404903495,1770670640116,500.0,0.00016482,2]
[404903496,1770670640173,500.0,0.00016482,2]
[404903497,1770670640325,500.0,0.00016482,2]
[404903498,1770670640363,500.0,0.00016482,2]
[404903499,1770670640400,500.0,0.00016482,2]
[404903500,1770670651531,279.42788018,0.00016383,2]
[404903501,1770670668500,631.66885311,0.00016383,2]
[404903502,1770670676421,2365.78075913,0.00016383,2]
[404903503,1770670676444,3153.18149247,0.00016383,2]
[404903504,1770670685164,540.80084655,0.00016392,2]
[404903505,1770670685362,6306.02766098,0.00016392,2]
[404903506,1770670685386,4691.24971268,0.00016392,2]
[404903507,1770670687761,1852.42,0.00016088,2]
[404903508,1770670688414,3456.34028732,7.945e-05,2]
[404903509,1770670688446,611.82174968,7.945e-05,2]
[404903510,1770670690465,241.21851397,0.00016482,2]
[404903511,1770670691484,500.0,0.00016482,2]
[404903512,1770670691541,360.11547042,0.00016482,2]
[404903513,1770670707832,1200.0,0.00016482,2]
[404903514,1770670710321,150.0,0.00016456,2]
[404903515,1770670710640,150.0,0.00016456,2]
[404903516,1770670720606,3870.31120467,0.00016383,2]
[404903518,1770670736217,500.0,0.00016482,2]
[404903519,1770670736254,500.0,0.00016482,2]
[404903520,1770670736302,500.0,0.00016482,2]
[404903521,1770670736347,500.0,0.00016482,2]
[404903522,1770670736388,500.0,0.00016482,2]
[404903523,1770670736421,416.54306126,0.00016482,2]
[404903524,1770670736447,83.45693874,0.00016482,2]
[404903525,1770670736484,481.15741801,0.00016482,2]
[404903526,1770670736524,500.0,0.00016482,2]
[404903527,1770670736621,500.0,0.00016482,2]
[404903528,1770670736683,500.0,0.00016482,2]
[404903529,1770670741502,300.0,0.00016482,2]
[404903530,1770670742003,151.0,0.0001648,2]
[404903531,1770670742438,151.0,0.0001648,2]
[404903532,1770670742804,151.0,0.0001648,2]
[404903533,1770670747129,3509.5838185,0.00016383,2]
[404903534,1770670753637,628.17993172,0.00016383,2]
[404903535,1770670761992,500.0,0.00016482,2]
[404903536,1770670762350,500.0,0.00016482,2]
[404903537,1770670762678,500.0,0.00016482,2]
[404903538,1770670762970,500.0,0.00016482,2]
[404903539,1770670763284,500.0,0.00016482,2]
[404903540,1770670763599,500.0,0.00016482,2]
[404903541,1770670763952,44.63189303,0.00016482,2]
[404903542,1770670763982,455.36810697,0.00016482,2]
[404903543,1770670764286,500.0,0.00016482,2]
[404903544,1770670764600,500.0,0.00016482,2]
[404903545,1770670764910,500.0,0.00016482,2]
[404903546,1770670765228,500.0,0.00016482,2]
[404903547,1770670766045,500.0,0.00016482,2]
[404903548,1770670766409,500.0,0.00016482,2]
[404903549,1770670766456,500.0,0.00016482,2]
[404903550,1770670766495,628.0144933,0.00016482,2]
[404903551,1770670767247,500.0,0.00016482,2]
[404903552,1770670767290,500.0,0.00016482,2]
[404903553,1770670767332,500.0,0.00016482,2]
[404903554,1770670767378,500.0,0.00016482,2]
[404903555,1770670769731,3416.62739973,0.00016473,2]
[404903556,1770670769759,3944.07078774,0.00016473,2]
[404903557,1770670780562,500.0,0.00016482,2]
[404903558,1770670780604,500.0,0.00016482,2]
[404903559,1770670780648,500.0,0.00016482,2]
[404903560,1770670780744,500.0,0.00016482,2]
[404903561,1770670780796,500.0,0.00016482,2]
[404903562,1770670780882,400.16723451,0.00016482,2]
[404903563,1770670780927,500.0,0.00016482,2]
[404903564,1770670780971,500.0,0.00016482,2]
[404903565,1770670781018,500.0,0.00016482,2]
[404903566,1770670781066,500.0,0.00016482,2]
[404903567,1770670781109,500.0,0.00016482,2]
[404903568,1770670781172,500.0,0.00016482,2]
[404903569,1770670781221,155.77197775,0.00016482,2]
[404903570,1770670781252,344.22802225,0.00016482,2]
[404903571,1770670781286,500.0,0.00016482,2]
[404903572,1770670781336,500.0,0.00016482,2]
[404903573,1770670781395,500.0,0.00016482,2]
[404903574,1770670781442,500.0,0.00016482,2]
[404903575,1770670781499,500.0,0.00016482,2]
[404903576,1770670781549,500.0,0.00016482,2]
[404903577,1770670781619,500.0,0.00016482,2]
[404903578,1770670781735,500.0,0.00016482,2]
[404903579,1770670781854,186.28525346,0.00016383,2]
[404903580,1770670782766,391.804,0.00016383,2]
[404903581,1770670796684,3679.30816774,0.00016383,2]
[404903582,1770670801226,1200.0,0.00016482,2]
[404903583,1770670801339,198.38455655,0.00016482,2]
[404903584,1770670801364,101.61544345,0.00016482,2]
[404903585,1770670801829,550.0,0.00016482,2]
[404903586,1770670803892,288.0,0.00016483,2]
[404903587,1770670805544,159.6,0.00016473,2]
[404903588,1770670805755,159.6,0.00016473,2]
[404903589,1770670816133,2311.45857641,0.000164,2]
[404903590,1770670826324,544.78542289,0.00016482,2]
[404903591,1770670834676,186.4458035,0.00016473,2]
[404903592,1770670843322,5698.50475375,0.00015936,2]
[404903593,1770670843347,5799.31524625,0.00015936,2]
[404903594,1770670858675,151.0,0.00016483,2]
[404903595,1770670858726,151.0,0.00016483,2]
[404903596,1770670861071,256.35906059,0.00016483,2]
[404903597,1770670862152,151.0,0.00016483,2]
[404903598,1770670864217,151.0,0.0001648,2]
[404903599,1770670864591,151.0,0.0001648,2]
[404903600,1770670864968,151.0,0.0001648,2]
[404903601,1770670867003,2500.0,0.00016383,2]
[404903602,1770670868203,500.0,0.00016482,2]
[404903603,1770670868439,38.33569316,0.00016482,2]
[404903604,1770670868462,515.60990359,0.00016482,2]
[404903605,1770670883815,418.78662116,0.00016383,2]
[404903606,1770670893316,3537.039,0.00016153,2]
[404903609,1770670902041,500.0,0.00016482,2]
[404903610,1770670902170,500.0,0.00016482,2]
[404903612,1770670902323,500.0,0.00016482,2]
[404903613,1770670902415,222.0564061,0.00016482,2]
[404903614,1770670902647,500.0,0.00016482,2]
[404903615,1770670902745,500.0,0.00016482,2]
[404903616,1770670902933,500.0,0.00016482,2]
[404903617,1770670903006,500.0,0.00016482,2]
[404903618,1770670903265,500.0,0.00016482,2]
[404903619,1770670903337,500.0,0.00016482,2]
[404903620,1770670903568,500.0,0.00016482,2]
[404903621,1770670903640,306.51806915,0.00016482,2]
[404903622,1770670903667,193.48193085,0.00016482,2]
[404903623,1770670903711,500.0,0.00016482,2]
[404903624,1770670903743,500.0,0.00016482,2]
[404903625,1770670903781,500.0,0.00016482,2]
[404903626,1770670903818,500.0,0.00016482,2]
[404903627,1770670903851,500.0,0.00016482,2]
[404903628,1770670903884,500.0,0.00016482,2]
[404903629,1770670903915,500.0,0.00016482,2]
[404903630,1770670903944,313.67683454,0.00016482,2]
[404903631,1770670904259,500.0,0.00016482,2]
[404903632,1770670904299,500.0,0.00016482,2]
[404903633,1770670904334,500.0,0.00016482,2]
[404903634,1770670904372,500.0,0.00016482,2]
[404903635,1770670904405,500.0,0.00016482,2]
[404903636,1770670904442,500.0,0.00016482,2]
[404903637,1770670904484,500.0,0.00016482,2]
[404903638,1770670904520,500.0,0.00016482,2]
[404903639,1770670904559,500.0,0.00016482,2]
[404903640,1770670904599,500.0,0.00016482,2]
[404903641,1770670904635,500.0,0.00016482,2]
[404903642,1770670904674,492.85123461,0.00016482,2]
[404903643,1770670904700,7.14876539,0.00016482,2]
[404903644,1770670904735,500.0,0.00016482,2]
[404903645,1770670904771,500.0,0.00016482,2]
[404903646,1770670904812,500.0,0.00016482,2]
[404903647,1770670904848,500.0,0.00016482,2]
[404903648,1770670904892,500.0,0.00016482,2]
[404903649,1770670904955,500.0,0.00016482,2]
[404903650,1770670905070,527.8596526,0.00016482,2]
[404903651,1770670905148,500.0,0.00016482,2]
[404903652,1770670912175,186.28525345,0.00016383,2]
[404903653,1770670916843,2452.87211182,0.00016383,2]
[404903654,1770670921193,300.0,0.00016482,2]
[404903655,1770670921924,500.0,0.00016482,2]
[404903656,1770670921965,500.0,0.00016482,2]
[404903657,1770670922023,500.0,0.00016482,2]
[404903658,1770670922073,500.0,0.00016482,2]
[404903659,1770670922106,500.0,0.00016482,2]
[404903660,1770670922140,500.0,0.00016482,2]
[404903661,1770670922182,25.84421674,0.00016482,2]
[404903668,1770670938845,10000.01,0.00016383,2]
[404903669,1770670938869,10000.01,0.00016383,2]
[404903670,1770670938892,8095.63877223,0.00016383,2]
[404903672,1770670949224,1904.37122777,0.00016383,2]
[404903673,1770670949247,4824.64157223,0.00016383,2]
[404903674,1770670977585,200.0,0.00015777,2]
[404903675,1770670983386,232.70100622,0.00016383,2]
[404903676,1770670986162,1200.0,0.00016373,2]
[404903677,1770670993252,8567.30899378,0.00016383,2]
[404903678,1770670993279,10000.01,0.00016383,2]
[404903679,1770670993305,10000.01,0.00016383,2]
[404903680,1770670993331,10000.01,0.00016383,2]
[404903681,1770670993358,10000.01,0.00016383,2]
[404903682,1770670993384,10000.01,0.00016383,2]
[404903683,1770670993409,10000.01,0.00016383,2]
[404903684,1770670993435,10000.01,0.00016383,2]
[404903685,1770670993460,10000.01,0.00016383,2]
[404903686,1770670993486,10000.01,0.00016383,2]
[404903687,1770671031490,10000.01,0.00015779,2]
[404903688,1770671031517,8036.13,0.00015779,2]
[404903689,1770671068947,23620.54004902,0.000345,30]
[404903690,1770671101116,438.43,0.00035616,30]
[404903701,1770671144267,195.7267908,0.00016183,2]
[404903702,1770671179840,3937.55,0.000302,30]
[404903703,1770671180175,3937.55,0.000335,30]
[404903704,1770671180431,3937.55,0.000351,30]
[404903713,1770671290105,1768.1532092,0.00015542,2]
[404903714,1770671290129,3618.6167908,0.00015542,2]
[404903715,1770671297660,3240.0,0.00015524,2]
[404903716,1770671313950,-29000.0,0.00016282,2]
[404903717,1770671345019,-151.0,0.0001628,2]
[404903718,1770671345041,-151.0,0.0001628,2]
[404903719,1770671345064,-151.0,0.0001628,2]
[404903720,1770671345085,-300.0,0.00016281,2]
[404903722,1770671345106,-16047.0,0.00016282,2]
[404903739,1770671369726,1312.96,0.00035616,30]
[404903740,1770671374529,2756.29,0.000302,30]
[404903741,1770671374822,2756.29,0.000336,30]
[404903742,1770671375119,2756.29,0.000352,30]
[404903743,1770671378765,3141.3932092,0.00016183,2]
[404903744,1770671378789,417.39992937,0.00016183,2]
[404903745,1770671393693,155.13400414,0.00016183,2]
[404903746,1770671412635,2371.42750236,0.00016183,2]
[404903747,1770671413862,151.0,0.00035616,31]
[404903748,1770671415361,151.0,0.00035616,31]
[404903749,1770671416977,151.0,0.00035616,31]
[404903750,1770671420177,608.41894228,0.00016183,2]
[404903753,1770671431615,-151.50510114,0.00016256,2]
[404903754,1770671431625,-186.4458035,0.00016273,2]
[404903755,1770671431635,-4840.76746304,0.00016282,2]
[404903756,1770671431670,-1414.52210262,0.00016282,2]
[404903757,1770671431680,-110.47789728,0.00016282,2]
[404903758,1770671431728,-439.52210272,0.00016282,2]
[404903759,1770671431737,-1200.0,0.00016282,2]
[404903760,1770671431748,-287.0,0.00016282,2]
[404903761,1770671431757,-272.86612182,0.00016283,2]
[404903762,1770671431767,-2984.15177546,0.00016283,2]
[404903763,1770671431779,-3744.86102454,0.00016283,2]
[404903764,1770671431789,-20740.50327562,0.00016283,2]
[404903765,1770671431800,-92235.08536453,0.00016283,2]
[404903766,1770671431812,-197074.39610885,0.00016283,2]
[404903767,1770671431835,-5749.99994,0.00016283,2]
[404903768,1770671431847,-1800.96953305,0.00016283,2]
[404903769,1770671431896,-504.21713587,0.00016283,2]
[404903811,1770671437822,-167.65758099,0.00016283,2]
[404903812,1770671437834,-981.56,0.00016283,2]
[404903813,1770671437845,-3180745.61106109,0.00016283,2]
[404903814,1770671437854,-1500000.0,0.00016283,2]
[404903815,1770671437864,-150.27588129,0.00016283,2]
[404903816,1770671437874,-166.80468234,0.00016331,2]
[404903817,1770671437883,-500.0,0.00016382,2]
[404903818,1770671437893,-194.86971904,0.00016382,2]
[404903819,1770671437902,-159.38731134,0.00016382,2]
[404903820,1770671437912,-236.87836932,0.00016382,2]
[404903821,1770671437921,-407.39575332,0.00016382,2]
[404903822,1770671437931,-153.42126966,0.00016382,2]
[404903823,1770671437941,-500.0,0.00016382,2]
[404903824,1770671437955,-506.03129652,0.00016382,2]
[404903825,1770671437964,-500.0,0.00016382,2]
[404903826,1770671437973,-500.0,0.00016382,2]
[404903827,1770671437984,-500.0,0.00016382,2]
[404903828,1770671437995,-500.0,0.00016382,2]
[404903829,1770671438004,-500.0,0.00016382,2]
[404903830,1770671438014,-277.9435939,0.00016382,2]
[404903831,1770671438026,-500.0,0.00016382,2]
[404903832,1770671438036,-500.0,0.00016382,2]
[404903833,1770671438045,-500.0,0.00016382,2]
[404903834,1770671438055,-500.0,0.00016382,2]
[404903835,1770671438065,-509.31183288,0.00016382,2]
[404903836,1770671438076,-500.0,0.00016382,2]
[404903837,1770671438091,-500.0,0.00016382,2]
[404903838,1770671438101,-500.0,0.00016382,2]
[404903839,1770671438111,-500.0,0.00016382,2]
[404903840,1770671438121,-500.0,0.00016382,2]
[404903841,1770671438131,-500.0,0.00016382,2]
[404903842,1770671438141,-500.0,0.00016382,2]
[404903843,1770671438151,-404.7419541,0.00016382,2]
[404903844,1770671438160,-500.0,0.00016382,2]
[404903845,1770671438170,-500.0,0.00016382,2]
[404903846,1770671438180,-500.0,0.00016382,2]
[404903847,1770671438189,-500.0,0.00016382,2]
[404903848,1770671438200,-500.0,0.00016382,2]
[404903849,1770671438209,-428.47392462,0.00016382,2]
[404903850,1770671438219,-500.0,0.00016382,2]
[404903851,1770671438228,-500.0,0.00016382,2]
[404903852,1770671438238,-500.0,0.00016382,2]
[404903853,1770671438248,-500.0,0.00016382,2]
[404903854,1770671438258,-500.0,0.00016382,2]
[404903855,1770671438269,-500.0,0.00016382,2]
[404903856,1770671438278,-500.0,0.00016382,2]
[404903857,1770671438290,-500.0,0.00016382,2]
[404903858,1770671438300,-500.0,0.00016382,2]
[404903859,1770671438310,-500.0,0.00016382,2]
[404903860,1770671438319,-500.0,0.00016382,2]
[404903861,1770671438329,-500.0,0.00016382,2]
[404903862,1770671438339,-500.0,0.00016382,2]
[404903863,1770671438349,-500.0,0.00016382,2]
[404903864,1770671438360,-500.0,0.00016382,2]
[404903865,1770671438371,-500.0,0.00016382,2]
[404903866,1770671438382,-500.0,0.00016382,2]
[404903867,1770671438392,-392.37651233,0.00016382,2]
[404903868,1770671438402,-557.78376926,0.00016382,2]
[404903869,1770671438412,-500.0,0.00016382,2]
[404903870,1770671438422,-500.0,0.00016382,2]
[404903871,1770671438432,-500.0,0.00016382,2]
[404903872,1770671438441,-500.0,0.00016382,2]
[404903873,1770671438452,-500.0,0.00016382,2]
[404903874,1770671438462,-489.34976475,0.00016382,2]
[404903875,1770671438472,-500.0,0.00016382,2]
[404903876,1770671438482,-500.0,0.00016382,2]
[404903877,1770671438492,-500.0,0.00016382,2]
[404903878,1770671438501,-500.0,0.00016382,2]
[404903879,1770671438510,-500.0,0.00016382,2]
[404903880,1770671438520,-500.0,0.00016382,2]
[404903881,1770671438529,-500.0,0.00016382,2]
[404903882,1770671438539,-262.4681981,0.00016382,2]
[404903883,1770671438548,-500.0,0.00016382,2]
[404903884,1770671438557,-500.0,0.00016382,2]
[404903885,1770671438567,-500.0,0.00016382,2]
[404903886,1770671438577,-500.0,0.00016382,2]
[404903887,1770671438587,-500.0,0.00016382,2]
[404903888,1770671438596,-500.0,0.00016382,2]
[404903889,1770671438606,-500.0,0.00016382,2]
[404903890,1770671438615,-500.0,0.00016382,2]
[404903891,1770671438626,-500.0,0.00016382,2]
[404903892,1770671438636,-500.0,0.00016382,2]
[404903893,1770671438646,-500.0,0.00016382,2]
[404903894,1770671438655,-500.0,0.00016382,2]
[404903895,1770671438664,-500.0,0.00016382,2]
[404903896,1770671438674,-500.0,0.00016382,2]
[404903897,1770671438683,-500.0,0.00016382,2]